bitfinex-derivatives/quotes_SOLF0:USTF0_20241029
["timestamp","ask_amount","ask_price","bid_price","bid_amount"]
[1730232018615,2.8033,178.37,178.29,25.2759233]
[1730232018814,1.2534,178.39,178.29,3.74]
[1730232020118,2.8035,178.36,178.31,2.8041]
[1730232020706,2.8035,178.36,178.29,3.74]
[1730232020921,2.8035,178.36,178.32,2.804]
[1730232022322,8.73922684,178.43,178.32,2.804]
[1730232022323,21.5359233,178.43,178.32,5.88]
[1730232022613,36.78595881,178.51,178.32,5.88]
[1730232022614,27.4159233,178.46,178.33,22.8369233]
[1730232022816,21.5359233,178.46,178.33,22.8369233]
[1730232023014,21.5359233,178.46,178.37,2.8032]
[1730232023213,3.8513,178.47,178.35,21.5359233]
[1730232023410,1.3478,178.47,178.39,2.8029]
[1730232023613,1.3478,178.47,178.36,7.1155]
[1730232023809,21.5359233,178.46,178.36,5.88]
[1730232024716,2.80294958,178.52,178.36,27.4159233]
[1730232024926,2.5529,178.52,178.36,27.4159233]
[1730232025411,2.8016,178.48,178.42,2.8024]
[1730232025610,2.8016,178.48,178.42,8.6824]
[1730232026111,2.8019,178.46,178.42,5.88]
[1730232028330,2.8014,178.5,178.44,2.8021]
[1730232028635,2.5529,178.52,178.42,5.88]
[1730232028931,2.8014,178.5,178.45,2.8019]
[1730232029130,2.5529,178.52,178.42,5.88]
[1730232029429,2.5529,178.52,178.47,2.8016]
[1730232029832,2.5529,178.52,178.42,5.88]
[1730232030027,21.5359233,178.59,178.42,28.6499233]
[1730232030221,8.79125839,178.58,178.42,28.6499233]
[1730232030425,24.29021285,178.59,178.42,28.6499233]
[1730232030726,21.5359233,178.59,178.42,28.6499233]
[1730232030925,8.7920656,178.58,178.42,28.6499233]
[1730232031127,2.8006,178.54,178.49,2.8013]
[1730232031331,2.8006,178.54,178.5,5.88]
[1730232032229,2.8004,178.55,178.5,8.6812]
[1730232032634,2.8004,178.55,178.5,5.88]
[1730232032830,2.8002,178.57,178.52,2.8008]
[1730232033038,2.5533,178.61,178.51,21.5359233]
[1730232033221,21.84188402,178.63,178.52,1.3213]
[1730232033424,21.5359233,178.61,178.46,21.5359233]
[1730232033631,21.5359233,178.58,178.49,5.88]
[1730232033846,21.5359233,178.62,178.49,5.88]
[1730232034027,10.24237203,178.61,178.49,5.88]
[1730232034231,21.5359233,178.58,178.49,5.88]
[1730232034438,2.8012,178.5,178.49,5.88]
[1730232034729,21.5359233,178.56,178.45,5.88]
[1730232034926,2.8008,178.53,178.45,8.682]
[1730232035130,2.80132282,178.54,178.45,5.88]
[1730232035330,21.5359233,178.53,178.45,5.88]
[1730232035534,24.31986575,178.53,178.45,5.88]
[1730232035926,21.5359233,178.55,178.43,5.86]
[1730232036123,2.78889823,178.54,178.44,2.8021]
[1730232036533,2.8012,178.51,178.46,2.8018]
[1730232036731,21.5359233,178.55,178.46,2.8018]
[1730232037134,2.8013,178.5,178.45,3.75]
[1730232038041,2.78609475,178.54,178.45,3.75]
[1730232038631,2.8018,178.47,178.45,3.75]
[1730232038837,21.5359233,178.52,178.45,3.75]
[1730232039339,24.31544312,178.52,178.45,3.75]
[1730232039731,2.8018,178.46,178.45,3.75]
[1730232040136,21.5359233,178.52,178.45,3.75]
[1730232040341,2.8017,178.47,178.45,3.75]
[1730232040940,2.8014,178.49,178.45,6.5519]
[1730232041327,21.5359233,178.55,178.45,3.75]
[1730232041531,270.04819047,178.68,178.47,21.5359233]
[1730232041733,22.8103233,178.64,178.5,21.5359233]
[1730232041934,2.8003,178.56,178.52,2.8009]
[1730232042135,25.54750402,178.64,178.53,5.86]
[1730232042540,21.5359233,178.61,178.53,5.86]
[1730232043136,2.7999,178.59,178.53,5.86]
[1730232043341,21.5359233,178.61,178.53,5.86]
[1730232043732,25.54750402,178.64,178.53,5.86]
[1730232044133,2.7995,178.61,178.55,2.8003]
[1730232044334,22.8103233,178.64,178.55,2.8003]
[1730232044837,25.55845438,178.64,178.53,5.86]
[1730232045039,21.5359233,178.61,178.53,5.86]
[1730232045438,21.5359233,178.61,178.5,3.92]
[1730232045637,21.5359233,178.58,178.51,5.86]
[1730232045845,1.2856,178.57,178.51,5.86]
[1730232046538,2.8009,178.52,178.51,5.86]
[1730232048143,1.2735,178.56,178.51,5.86]
[1730232048339,2.8009,178.52,178.51,5.86]
[1730232048843,2.8007,178.53,178.51,5.86]
[1730232049446,2.8006,178.54,178.51,8.661]
[1730232049649,1.2735,178.56,178.51,5.86]
[1730232050044,4.0858,178.57,178.51,5.86]
[1730232050248,21.5359233,178.61,178.51,5.86]
[1730232050837,21.5359233,178.59,178.51,5.86]
[1730232051242,2.8002,178.57,178.51,8.661]
[1730232051448,21.5359233,178.61,178.51,5.86]
[1730232052339,2.8009,178.52,178.47,60.54]
[1730232052542,21.5359233,178.58,178.48,5.86]
[1730232052843,2.801,178.52,178.48,8.6614]
[1730232054545,21.5359233,178.58,178.49,5.86]
[1730232055252,5.86,178.61,178.49,5.86]
[1730232055253,27.3959233,178.61,178.51,2.8009]
[1730232055555,21.5359233,178.58,178.49,5.86]
[1730232056856,21.5359233,178.58,178.5,2.8011]
[1730232057155,1.2283,178.62,178.5,21.5359233]
[1730232057350,2.8005,178.55,178.52,2.8009]
[1730232058153,21.5359233,178.61,178.47,82.0759233]
[1730232058352,21.5359233,178.58,178.48,5.86]
[1730232058559,21.5359233,178.58,178.47,60.54]
[1730232058855,2.8012,178.51,178.47,69.2016]
[1730232059059,21.5359233,178.58,178.47,66.4]
[1730232059455,2.8012,178.51,178.48,2.8014]
[1730232059864,2.8009,178.52,178.49,2.8013]
[1730232060263,21.5359233,178.58,178.47,66.4]
[1730232060559,2.8005,178.55,178.52,2.8009]
[1730232060761,2.8005,178.55,178.52,8.6609]
[1730232061260,2.8006,178.54,178.52,5.86]
[1730232061659,21.5359233,178.58,178.47,60.54]
[1730232061960,2.8012,178.51,178.48,8.6615]
[1730232062359,21.5359233,178.58,178.47,60.54]
[1730232062559,13.45488141,178.51,178.46,3.92]
[1730232062761,13.45488141,178.48,178.39,5.86]
[1730232063169,13.45488141,178.48,178.41,2.8026]
[1730232063358,1.2336,178.49,178.41,2.8026]
[1730232063561,2.8015,178.48,178.45,2.8019]
[1730232063968,1.252,178.54,178.45,13.45488141]
[1730232064267,1.252,178.54,178.48,13.45488141]
[1730232064468,1.2633,178.56,178.49,5.86]
[1730232064666,2.8009,178.53,178.5,2.8011]
[1730232064873,2.8009,178.53,178.49,5.86]
[1730232065166,1.2633,178.56,178.49,5.86]
[1730232065371,2.8006,178.55,178.51,2.8009]
[1730232065867,2.8006,178.54,178.51,2.8009]
[1730232066066,14.71818141,178.56,178.49,5.86]
[1730232066467,1.2633,178.56,178.49,5.86]
[1730232066774,2.8009,178.52,178.49,8.6613]
[1730232066969,1.2633,178.56,178.49,5.86]
[1730232067565,21.54366194,178.52,178.4,1.332]
[1730232067767,1.275,178.51,178.4,7.112]
[1730232067965,2.5689,178.51,178.4,4.1348]
[1730232068264,2.5689,178.51,178.34,2.5157]
[1730232068265,21.54366194,178.46,178.37,5.78]
[1730232068470,2.8027,178.41,178.37,5.78]
[1730232068774,1.2546,178.45,178.37,5.78]
[1730232069159,21.54366194,178.49,178.37,9.7]
[1730232069775,2.8021,178.45,178.4,2.8027]
[1730232070072,21.54366194,178.49,178.37,9.7]
[1730232070271,2.802,178.46,178.37,9.7]
[1730232070473,21.54366194,178.49,178.37,9.7]
[1730232070979,1.3019,178.5,178.39,25.29366194]
[1730232071569,2.8017,178.47,178.43,2.8022]
[1730232072474,1.275,178.51,178.42,5.8]
[1730232073778,2.802,178.46,178.42,5.8]
[1730232073973,21.54366194,178.5,178.42,5.8]
[1730232074171,21.54366194,178.5,178.39,3.75]
[1730232074679,2.8028,178.4,178.39,3.75]
[1730232075371,1.3432,178.46,178.39,3.75]
[1730232075568,2.8027,178.41,178.39,3.75]
[1730232075772,1.3432,178.46,178.39,3.75]
[1730232075979,2.8024,178.43,178.39,6.5528]
[1730232076380,2.8024,178.43,178.39,3.75]
[1730232077073,2.8024,178.43,178.39,6.5529]
[1730232077473,1.3432,178.46,178.39,3.75]
[1730232078785,2.8022,178.44,178.39,3.75]
[1730232079081,22.80656194,178.52,178.39,3.75]
[1730232079285,22.80656194,178.52,178.4,22.79176194]
[1730232079490,22.80656194,178.52,178.41,5.8]
[1730232079689,1.2882,178.53,178.41,5.8]
[1730232079982,1.2882,178.53,178.41,7.0978]
[1730232080182,2.8015,178.49,178.41,7.0978]
[1730232080386,1.2882,178.53,178.41,7.0978]
[1730232080783,2.8014,178.49,178.45,2.8019]
[1730232081183,2.8014,178.49,178.45,6.5519]
[1730232081582,2.8012,178.51,178.48,2.8015]
[1730232082290,2.8009,178.52,178.48,2.8015]
[1730232082586,2.8009,178.52,178.46,5.8]
[1730232082587,2.8009,178.52,178.49,2.8013]
[1730232082789,2.6098,178.57,178.46,5.8]
[1730232083185,2.6098,178.57,178.5,2.8012]
[1730232083384,2.6098,178.57,178.46,5.8]
[1730232083789,1.2589,178.62,178.48,21.54366194]
[1730232083980,1.2589,178.62,178.51,21.54366194]
[1730232084181,2.7998,178.59,178.54,2.8004]
[1730232084377,1.2589,178.62,178.54,2.8004]
[1730232084583,1.2589,178.62,178.52,5.8]
[1730232084786,2.7998,178.6,178.52,5.8]
[1730232085292,1.2589,178.62,178.52,5.8]
[1730232085479,22.80256194,178.62,178.52,5.8]
[1730232086284,2.8004,178.56,178.52,8.6008]
[1730232086687,1.2589,178.62,178.52,5.8]
[1730232086887,2.7997,178.6,178.52,5.8]
[1730232087190,1.2589,178.62,178.53,3.92]
[1730232087594,2.7998,178.59,178.55,2.8003]
[1730232087987,2.7998,178.59,178.53,3.92]
[1730232088289,2.7997,178.6,178.56,2.8002]
[1730232088684,2.7997,178.6,178.57,5.78]
[1730232090686,7.5519085,178.63,178.59,2.7997]
[1730232091585,10.3512085,178.63,178.59,2.7997]
[1730232091790,20.66939044,178.63,178.59,2.7997]
[1730232091988,10.3512085,178.63,178.59,2.7997]
[1730232092192,10.29146347,178.64,178.6,2.7996]
[1730232092389,10.29146347,178.64,178.57,27.32366194]
[1730232092689,10.29146347,178.64,178.61,2.7994]
[1730232092887,10.29146347,178.64,178.57,27.32366194]
[1730232093794,10.29146347,178.64,178.6,2.7995]
[1730232093986,10.29146347,178.64,178.57,27.32366194]
[1730232094482,10.29146347,178.64,178.59,2.7998]
[1730232094986,10.29146347,178.64,178.57,5.78]
[1730232095185,10.29146347,178.64,178.63,2.7992]
[1730232095585,10.29146347,178.64,178.62,5.62]
[1730232095791,19.19664205,178.66,178.62,5.62]
[1730232096093,13.44984299,178.64,178.57,5.62]
[1730232096293,2.7989,178.65,178.57,19.06984299]
[1730232096485,19.20002167,178.67,178.57,19.06984299]
[1730232096685,19.20002167,178.67,178.59,13.44984299]
[1730232097387,19.20002167,178.67,178.63,2.7991]
[1730232097591,19.20002167,178.67,178.62,5.62]
[1730232097793,262.55345592,178.68,178.62,5.62]
[1730232097989,19.203191,178.67,178.62,5.62]
[1730232098391,19.203191,178.67,178.64,2.7989]
[1730232098591,10.33340837,178.67,178.62,5.62]
[1730232098989,2.5649,178.7,178.62,5.62]
[1730232099489,2.5649,178.7,178.63,13.44984299]
[1730232099994,5.3631,178.7,178.65,2.7988]
[1730232101496,5.3631,178.7,178.66,2.7987]
[1730232101797,5.3631,178.7,178.67,3.74]
[1730232102496,4.1268,178.7,178.67,3.74]
[1730232102698,19.20180476,178.72,178.67,9.36]
[1730232102898,4.16853993,178.75,178.67,9.36]
[1730232103087,6.96583993,178.75,178.72,2.7977]
[1730232103291,21.80413868,178.76,178.68,13.44984299]
[1730232103497,2.6238,178.76,178.68,13.44984299]
[1730232103892,1.3043,178.76,178.68,13.44984299]
[1730232104895,1.3043,178.76,178.7,2.798]
[1730232105093,13.44984299,178.75,178.67,3.74]
[1730232105298,13.44984299,178.73,178.67,3.74]
[1730232105497,2.7978,178.72,178.69,2.7982]
[1730232111510,2.7978,178.72,178.68,2.7983]
[1730232111803,2.7976,178.73,178.67,3.74]
[1730232112009,1.3043,178.76,178.67,3.74]
[1730232112201,1.3043,178.76,178.68,13.44984299]
[1730232114014,2.7973,178.75,178.72,2.7976]
[1730232114214,1.3043,178.76,178.67,3.74]
[1730232114607,2.7975,178.74,178.71,2.7979]
[1730232114812,1.3043,178.76,178.68,13.44984299]
[1730232115412,2.7976,178.74,178.7,2.7979]
[1730232116014,1.3043,178.76,178.68,13.44984299]
[1730232116315,2.7974,178.75,178.68,13.44984299]
[1730232116515,1.3043,178.76,178.71,2.7978]
[1730232116720,2.7975,178.74,178.71,2.7978]
[1730232117017,2.7975,178.74,178.68,13.44984299]
[1730232117217,2.7975,178.74,178.71,2.7979]
[1730232119024,13.44984299,178.75,178.67,3.74]
[1730232119227,13.44984299,178.73,178.67,3.74]
[1730232119613,2.7982,178.7,178.67,6.5385]
[1730232120119,13.44984299,178.73,178.67,6.5385]
[1730232120120,13.44984299,178.73,178.67,3.74]
[1730232120324,2.7983,178.69,178.67,3.74]
[1730232120816,2.7981,178.7,178.67,6.5384]
[1730232121207,13.44984299,178.73,178.67,3.74]
[1730232121417,2.7979,178.71,178.68,2.7983]
[1730232121719,1.3043,178.76,178.67,3.74]
[1730232122218,2.7977,178.73,178.7,2.798]
[1730232122516,1.3043,178.76,178.68,13.44984299]
[1730232122720,2.7975,178.74,178.71,2.7979]
[1730232123122,1.3043,178.76,178.71,2.7979]
[1730232123519,14.75414299,178.76,178.67,3.74]
[1730232123727,13.44984299,178.73,178.67,3.74]
[1730232124020,1.3016,178.72,178.67,3.74]
[1730232124727,2.7982,178.7,178.67,6.5385]
[1730232125421,1.3016,178.72,178.67,3.74]
[1730232125619,2.7979,178.72,178.69,2.7981]
[1730232125813,1.3043,178.76,178.67,3.74]
[1730232126012,2.7976,178.74,178.69,2.7982]
[1730232126220,1.3043,178.76,178.69,2.7982]
[1730232126617,13.44984299,178.75,178.68,2.7984]
[1730232127216,2.798,178.71,178.68,2.7984]
[1730232127924,2.7979,178.72,178.69,2.7981]
[1730232128522,2.7976,178.73,178.69,3.74]
[1730232128822,1.3043,178.76,178.7,5.32]
[1730232129228,2.7974,178.75,178.72,2.7976]
[1730232129426,2.7974,178.75,178.7,18.76984299]
[1730232130121,1.3319,178.81,178.76,2.7971]
[1730232130317,4.15301075,178.81,178.76,2.7971]
[1730232130731,2.7968,178.79,178.76,2.7971]
[1730232130927,4.15301075,178.81,178.76,2.7971]
[1730232131131,4.15301075,178.81,178.75,2.7972]
[1730232131331,2.7969,178.78,178.75,2.7972]
[1730232132328,2.7968,178.79,178.76,2.7971]
[1730232133124,4.15301075,178.81,178.76,2.7971]
[1730232133430,2.7968,178.78,178.76,2.7971]
[1730232134024,2.7968,178.78,178.75,2.7972]
[1730232135134,1.2894,178.82,178.76,18.76984299]
[1730232135430,21.00905564,178.88,178.78,13.44984299]
[1730232135431,1.2524,178.87,178.78,13.44984299]
[1730232135630,1.2524,178.87,178.76,18.76984299]
[1730232135832,13.44984299,178.86,178.76,18.76984299]
[1730232136428,2.7965,178.8,178.77,2.7969]
[1730232137834,2.7964,178.81,178.77,2.7969]
[1730232138331,2.7964,178.81,178.76,5.32]
[1730232138332,2.83272112,178.82,178.76,5.32]
[1730232138533,13.44984299,178.83,178.76,5.32]
[1730232138733,16.21707737,178.83,178.76,5.32]
[1730232138934,2.7967,178.79,178.76,5.32]
[1730232139132,1.2524,178.87,178.77,13.44984299]
[1730232139337,1.2524,178.87,178.81,13.44984299]
[1730232139528,2.5233,178.9,178.84,13.44984299]
[1730232139834,2.7952,178.89,178.83,2.7959]
[1730232140034,14.70304299,178.9,178.82,5.32]
[1730232140841,2.7963,178.82,178.8,5.32]
[1730232141132,2.77469669,178.84,178.8,5.32]
[1730232141335,13.44984299,178.81,178.7,1.2893]
[1730232141533,16.30039389,178.81,178.7,20.05914299]
[1730232141936,2.7972,178.76,178.72,2.7976]
[1730232142140,2.8505509,178.81,178.73,13.44984299]
[1730232142337,1.3079,178.82,178.73,13.44984299]
[1730232142635,4.04524885,178.82,178.73,13.44984299]
[1730232142847,13.44984299,178.81,178.7,25.22554299]
[1730232143139,13.44984299,178.79,178.7,3.91]
[1730232143330,13.44984299,178.76,178.7,3.91]
[1730232143640,2.7979,178.71,178.7,3.91]
[1730232143844,13.44984299,178.78,178.7,3.91]
[1730232144841,13.44984299,178.8,178.7,17.35984299]
[1730232145037,2.797,178.77,178.71,2.7978]
[1730232145339,13.44984299,178.8,178.7,17.35984299]
[1730232145541,2.7973,178.76,178.72,2.7977]
[1730232145735,4.06875982,178.82,178.72,13.44984299]
[1730232145940,4.06875982,178.82,178.73,5.32]
[1730232146236,2.7971,178.77,178.73,5.32]
[1730232146439,13.44984299,178.8,178.73,5.32]
[1730232146832,1.3079,178.82,178.74,13.44984299]
[1730232147051,1.3079,178.82,178.73,5.32]
[1730232147052,14.75774299,178.82,178.73,5.32]
[1730232147341,17.5190627,178.82,178.73,5.32]
[1730232147730,2.7974,178.74,178.73,5.32]
[1730232148041,17.5190627,178.82,178.73,5.32]
[1730232148241,2.7967,178.79,178.75,2.7972]
[1730232148437,1.3079,178.82,178.74,13.44984299]
[1730232149047,1.2633,178.83,178.76,13.44984299]
[1730232149234,14.78904299,178.87,178.76,13.44984299]
[1730232149433,2.582,178.89,178.81,13.44984299]
[1730232149640,1.2447,178.89,178.81,18.76984299]
[1730232149941,4.0398,178.89,178.85,2.7956]
[1730232150335,4.0398,178.89,178.81,18.76984299]
[1730232150336,1.2447,178.89,178.81,18.76984299]
[1730232151040,13.44984299,178.92,178.84,2.7958]
[1730232151349,13.44984299,178.9,178.81,18.76984299]
[1730232151547,13.44984299,178.9,178.81,5.32]
[1730232151942,13.44984299,178.88,178.81,5.32]
[1730232152143,10.0812477,178.92,178.74,13.44984299]
[1730232152144,1.2912,178.87,178.74,13.44984299]
[1730232152342,13.44984299,178.83,178.75,5.32]
[1730232152747,2.7966,178.8,178.76,2.797]
[1730232153037,13.44984299,178.83,178.75,5.32]
[1730232153238,13.44984299,178.78,178.7,9.29]
[1730232153442,1.2553,178.77,178.7,9.29]
[1730232153745,2.7972,178.76,178.73,2.7976]
[1730232154047,1.2553,178.77,178.7,9.29]
[1730232154255,2.7968,178.78,178.75,2.7972]
[1730232154451,6.7106,178.83,178.71,21.50477848]
[1730232154848,6.7106,178.83,178.7,10.5405]
[1730232154849,21.50477848,178.82,178.7,10.5405]
[1730232155347,21.50477848,178.82,178.73,2.7976]
[1730232155656,21.50477848,178.82,178.7,10.5405]
[1730232156747,2.7968,178.79,178.71,21.50477848]
[1730232156947,1.3306,178.83,178.71,21.50477848]
[1730232157142,2.7973,178.76,178.72,2.7978]
[1730232157452,21.50477848,178.82,178.7,10.5405]
[1730232157652,21.50477848,178.82,178.71,2.7978]
[1730232158055,19.15732319,178.81,178.71,2.7978]
[1730232158249,2.7973,178.76,178.7,10.5405]
[1730232158449,19.15732319,178.81,178.7,10.5405]
[1730232158655,21.50477848,178.82,178.7,10.5405]
[1730232158853,2.7968,178.79,178.73,2.7975]
[1730232159050,21.50477848,178.82,178.7,10.5405]
[1730232159456,2.7969,178.78,178.74,2.7974]
[1730232159659,21.50477848,178.82,178.7,10.5405]
[1730232159859,21.50477848,178.79,178.7,10.5405]
[1730232160361,21.50477848,178.79,178.7,3.91]
[1730232160653,2.6057,178.78,178.7,3.91]
[1730232160868,2.7979,178.72,178.7,3.91]
[1730232161250,21.50477848,178.76,178.7,3.91]
[1730232161453,2.7979,178.71,178.7,3.91]
[1730232163363,2.7978,178.73,178.7,3.91]
[1730232163653,1.302,178.75,178.7,3.91]
[1730232164950,2.7979,178.71,178.7,3.91]
[1730232165156,1.302,178.75,178.7,3.91]
[1730232165458,2.7972,178.76,178.72,2.7976]
[1730232165667,1.2384,178.81,178.7,3.91]
[1730232166356,1.2384,178.81,178.71,21.50477848]
[1730232166660,2.7967,178.79,178.76,2.7971]
[1730232166856,1.2384,178.81,178.74,5.38]
[1730232167765,4.0349,178.81,178.77,2.797]
[1730232167954,1.2384,178.81,178.74,5.38]
[1730232168356,4.0349,178.81,178.77,2.7968]
[1730232168556,1.281,178.83,178.74,26.88477848]
[1730232168752,2.5553,178.88,178.77,21.50477848]
[1730232168958,2.7954,178.87,178.77,21.50477848]
[1730232169156,1.2534,178.88,178.77,21.50477848]
[1730232169557,20.54767408,178.91,178.8,2.7965]
[1730232169558,2.7955,178.87,178.8,2.7965]
[1730232169866,2.7955,178.87,178.74,5.38]
[1730232169867,21.50477848,178.81,178.66,21.50477848]
[1730232170170,2.7973,178.75,178.7,6.708]
[1730232170560,3.8973,178.8,178.7,3.91]
[1730232170763,2.797,178.78,178.72,2.7978]
[1730232171166,2.797,178.78,178.69,21.50477848]
[1730232171356,2.797,178.78,178.7,2.7979]
[1730232171557,2.7971,178.77,178.7,2.7979]
[1730232171774,2.7971,178.77,178.69,21.50477848]
[1730232172362,2.7968,178.79,178.72,2.7976]
[1730232172564,3.8973,178.8,178.72,27.18477848]
[1730232172565,1.2529,178.8,178.72,27.18477848]
[1730232172767,10.35728928,178.86,178.72,27.18477848]
[1730232173064,20.4783926,178.86,178.72,27.18477848]
[1730232173670,20.4783926,178.86,178.73,2.7975]
[1730232173867,20.4783926,178.86,178.72,27.18477848]
[1730232174175,2.7968,178.79,178.73,2.7975]
[1730232174367,21.50477848,178.84,178.72,5.68]
[1730232174368,19.2462926,178.83,178.72,5.68]
[1730232174669,2.7967,178.79,178.75,2.7973]
[1730232174868,19.2462926,178.83,178.72,5.68]
[1730232175271,21.50477848,178.81,178.72,5.68]
[1730232175473,20.5523926,178.8,178.72,5.68]
[1730232176076,20.5523926,178.8,178.68,5.68]
[1730232176265,1.3464,178.79,178.68,5.68]
[1730232176770,19.2462926,178.8,178.7,21.50477848]
[1730232176971,24.11937848,178.86,178.71,1.3088]
[1730232177168,19.25544056,178.85,178.71,1.3088]
[1730232177671,19.25544056,178.85,178.73,21.50477848]
[1730232177872,19.25544056,178.84,178.74,5.68]
[1730232178063,13.28457305,178.88,178.77,2.7969]
[1730232178064,2.7965,178.81,178.77,2.7969]
[1730232178265,19.25544056,178.82,178.76,21.50477848]
[1730232178571,21.50477848,178.89,178.76,21.50477848]
[1730232178769,2.7961,178.83,178.79,2.7965]
[1730232178967,2.7961,178.83,178.76,21.50477848]
[1730232179567,2.7959,178.84,178.76,21.50477848]
[1730232179871,2.7959,178.84,178.78,2.7968]
[1730232180068,2.7955,178.87,178.78,21.50477848]
[1730232180273,22.06034449,178.87,178.79,2.5118]
[1730232180468,19.26484449,178.86,178.8,5.66]
[1730232180664,2.7948,178.91,178.82,21.50477848]
[1730232180864,8.90104855,178.96,178.82,21.50477848]
[1730232181060,8.90104855,178.96,178.84,21.50477848]
[1730232181261,8.90104855,178.98,178.87,21.50477848]
[1730232181466,41.78664118,179.02,178.87,21.50477848]
[1730232181467,11.67655543,179.01,178.88,5.66]
[1730232181661,8.90104855,179.01,178.88,5.66]
[1730232181875,21.50477848,179.04,178.9,21.50477848]
[1730232182063,8.90104855,179.03,178.9,21.50477848]
[1730232182276,8.90104855,179.03,178.93,19.50477848]
[1730232182468,10.24444855,179.09,178.96,21.50477848]
[1730232182867,8.90104855,179.09,178.96,21.50477848]
[1730232183172,2.7927,179.05,179.0,2.7932]
[1730232183372,8.90104855,179.12,179.01,5.66]
[1730232183676,2.7922,179.08,179.01,5.66]
[1730232183869,21.50477848,179.04,178.94,5.66]
[1730232184175,2.7945,178.94,178.89,1.2522]
[1730232184368,21.50477848,179.01,178.9,5.66]
[1730232184566,21.50477848,178.95,178.81,5.66]
[1730232184771,2.7952,178.89,178.84,2.7958]
[1730232185072,21.50477848,178.95,178.84,2.7958]
[1730232185478,2.7947,178.92,178.84,2.7958]
[1730232185675,21.50477848,178.95,178.84,2.7958]
[1730232186169,21.50477848,178.95,178.81,5.66]
[1730232186375,2.7948,178.91,178.86,2.7955]
[1730232186577,2.7948,178.91,178.83,21.50477848]
[1730232186578,21.50477848,178.98,178.83,21.50477848]
[1730232186881,1.2496,179.0,178.86,21.50477848]
[1730232187270,2.7948,178.92,178.87,2.7954]
[1730232187473,21.50477848,178.98,178.84,5.66]
[1730232187671,21.50477848,178.95,178.8,21.50477848]
[1730232187874,2.7956,178.86,178.81,8.4563]
[1730232188075,21.50477848,178.92,178.81,8.4563]
[1730232188076,21.50477848,178.92,178.81,5.66]
[1730232188381,2.7949,178.91,178.86,2.7954]
[1730232188579,2.7949,178.91,178.87,5.66]
[1730232189767,2.5464,178.94,178.87,5.66]
[1730232190080,2.5464,178.94,178.87,8.4554]
[1730232190377,8.85580621,178.97,178.9,21.50477848]
[1730232190569,7.56086233,179.03,178.9,21.50477848]
[1730232190769,7.56086233,179.03,178.93,21.50477848]
[1730232190972,26.66287789,179.03,178.94,8.4543]
[1730232191273,26.66287789,179.03,178.94,5.66]
[1730232191476,26.66287789,179.03,178.95,2.7941]
[1730232191882,2.7933,179.01,178.94,5.66]
[1730232192079,10.24620935,179.02,178.94,5.66]
[1730232192270,7.56086233,179.03,178.94,5.66]
[1730232192476,2.7945,178.93,178.9,21.50477848]
[1730232192675,2.7945,178.93,178.91,5.66]
[1730232193683,2.7946,178.92,178.91,5.66]
[1730232194072,21.50477848,179.0,178.91,5.66]
[1730232194277,2.7945,178.93,178.91,5.66]
[1730232194474,21.50477848,179.0,178.91,5.66]
[1730232194679,2.7946,178.92,178.91,5.66]
[1730232194989,19.07985834,178.99,178.89,5.66]
[1730232195185,19.08470219,179.02,178.89,5.66]
[1730232195384,2.6084,179.04,178.91,21.50477848]
[1730232195584,12.848167,179.04,178.91,21.50477848]
[1730232195786,2.6084,179.04,178.91,21.50477848]
[1730232196687,5.37095452,179.04,178.89,5.66]
[1730232196981,2.6084,179.04,178.88,21.50477848]
[1730232197188,2.6084,179.04,178.89,5.66]
[1730232197388,2.8376489,179.03,178.89,5.66]
[1730232197785,2.6084,179.04,178.89,5.66]
[1730232198184,21.50477848,179.0,178.87,2.7953]